[Event "Titled Tuesday Blitz February 22 Early 2022"]
[White "Qashashvili, Alexandre"]
[Black "Brodowski, Piotr"]
[WhiteFideId "13600842"]
[BlackFideId "1124480"]
[WhiteElo "2316"]
[BlackElo "2422"]
[Result "0-1"]
[Round "01"]
[TimeControl "180+1"]
[Date "2022.02.22"]
[WhiteClock "0:01:25"]
[BlackClock "0:01:12"]

1. e4 {[%clk 0:02:49]}  d6 {[%clk 0:02:58]} 2. d4 {[%clk 0:02:48]}  Nf6 {[%clk 0:02:58]} 3. Nc3 {[%clk 0:02:48]}  g6 {[%clk 0:02:58]} 4. Be3 {[%clk 0:02:47]}  c6 {[%clk 0:02:56]} 5. f3 {[%clk 0:02:48]}  b5 {[%clk 0:02:53]} 6. Qd2 {[%clk 0:02:47]}  Nbd7 {[%clk 0:02:49]} 7. Bh6 {[%clk 0:02:46]}  Bxh6 {[%clk 0:02:44]} 8. Qxh6 {[%clk 0:02:45]}  b4 {[%clk 0:02:44]} 9. Nce2 {[%clk 0:02:44]}  Qa5 {[%clk 0:02:44]} 10. c3 {[%clk 0:02:41]}  Ba6 {[%clk 0:02:40]} 11. Kf2 {[%clk 0:02:28]}  e5 {[%clk 0:02:22]} 12. h4 {[%clk 0:02:20]}  Rb8 {[%clk 0:01:55]} 13. g3 {[%clk 0:02:09]}  bxc3 {[%clk 0:01:53]} 14. bxc3 {[%clk 0:02:07]}  Rb2 {[%clk 0:01:53]} 15. Bh3 {[%clk 0:02:00]}  Qxc3 {[%clk 0:01:40]} 16. Bxd7+ {[%clk 0:02:00]}  Nxd7 {[%clk 0:01:38]} 17. dxe5 {[%clk 0:01:58]}  Nxe5 {[%clk 0:01:26]} 18. Qe3 {[%clk 0:01:42]}  Nd3+ {[%clk 0:01:21]} 19. Kg2 {[%clk 0:01:30]}  Ne1+ {[%clk 0:01:16]} 20. Rxe1 {[%clk 0:01:25]}  Qxe3 {[%clk 0:01:12]} 0-1


[Site "https://www.chess.com"]

[Event "Titled Tuesday Blitz February 22 Early 2022"]
[White "Redzisz, Michal"]
[Black "Mikhailovsky, Vladimir"]
[WhiteFideId "21816107"]
[BlackFideId "34105414"]
[WhiteElo "1961"]
[BlackElo "2371"]
[Result "0-1"]
[Round "01"]
[TimeControl "180+1"]
[Date "2022.02.22"]
[WhiteClock "0:00:12"]
[BlackClock "0:00:16"]

1. c4 {[%clk 0:02:18]}  c6 {[%clk 0:02:57]} 2. Nc3 {[%clk 0:02:16]}  d5 {[%clk 0:02:57]} 3. e3 {[%clk 0:02:16]}  Nf6 {[%clk 0:02:55]} 4. Nf3 {[%clk 0:02:16]}  Nbd7 {[%clk 0:02:45]} 5. b3 {[%clk 0:02:15]}  e6 {[%clk 0:02:45]} 6. Bb2 {[%clk 0:02:15]}  Bd6 {[%clk 0:02:45]} 7. Qc2 {[%clk 0:02:12]}  O-O {[%clk 0:02:44]} 8. d4 {[%clk 0:02:12]}  Qe7 {[%clk 0:02:38]} 9. Be2 {[%clk 0:02:11]}  e5 {[%clk 0:02:29]} 10. cxd5 {[%clk 0:02:09]}  Nxd5 {[%clk 0:02:30]} 11. Nxd5 {[%clk 0:02:08]}  cxd5 {[%clk 0:02:30]} 12. dxe5 {[%clk 0:02:08]}  Nxe5 {[%clk 0:02:28]} 13. O-O {[%clk 0:02:06]}  Rd8 {[%clk 0:02:19]} 14. Nxe5 {[%clk 0:01:57]}  Bxe5 {[%clk 0:02:19]} 15. Bf3 {[%clk 0:01:57]}  g6 {[%clk 0:02:08]} 16. Rfd1 {[%clk 0:01:54]}  Bf5 {[%clk 0:02:08]} 17. Qe2 {[%clk 0:01:53]}  Rac8 {[%clk 0:01:41]} 18. Rac1 {[%clk 0:01:24]}  Be4 {[%clk 0:01:20]} 19. Bg4 {[%clk 0:00:35]}  Rxc1 {[%clk 0:01:10]} 20. Rxc1 {[%clk 0:00:36]}  Bxb2 {[%clk 0:00:58]} 21. Qxb2 {[%clk 0:00:37]}  Qg5 {[%clk 0:00:59]} 22. Bh3 {[%clk 0:00:32]}  h5 {[%clk 0:00:35]} 23. Qe2 {[%clk 0:00:24]}  d4 {[%clk 0:00:29]} 24. f4 {[%clk 0:00:24]}  Qf6 {[%clk 0:00:27]} 25. exd4 {[%clk 0:00:21]}  Rxd4 {[%clk 0:00:20]} 26. Rc4 {[%clk 0:00:13]}  Bd3 {[%clk 0:00:15]} 27. Qe8+ {[%clk 0:00:12]}  Kg7 {[%clk 0:00:15]} 28. Rxd4 {[%clk 0:00:12]}  Qxd4+ {[%clk 0:00:16]} 29. Kh1 {[%clk 0:00:12]}  Qa1+ {[%clk 0:00:16]} 0-1


[Site "https://www.chess.com"]

[Event "Titled Tuesday Blitz February 22 Early 2022"]
[White "Ronka, Erik"]
[Black "Lou, Yiping"]
[WhiteFideId "505080"]
[BlackFideId "8603928"]
[WhiteElo "2264"]
[BlackElo "2412"]
[Result "0-1"]
[Round "01"]
[TimeControl "180+1"]
[Date "2022.02.22"]
[WhiteClock "0:00:03"]
[BlackClock "0:00:05"]

1. d4 {[%clk 0:03:00]}  Nf6 {[%clk 0:02:57]} 2. Nf3 {[%clk 0:03:01]}  d5 {[%clk 0:02:56]} 3. g3 {[%clk 0:03:02]}  g6 {[%clk 0:02:55]} 4. Bg2 {[%clk 0:03:02]}  Bg7 {[%clk 0:02:55]} 5. O-O {[%clk 0:03:03]}  O-O {[%clk 0:02:54]} 6. c4 {[%clk 0:03:04]}  c6 {[%clk 0:02:55]} 7. b3 {[%clk 0:03:04]}  Bf5 {[%clk 0:02:52]} 8. Bb2 {[%clk 0:03:03]}  Nbd7 {[%clk 0:02:51]} 9. Nc3 {[%clk 0:03:02]}  dxc4 {[%clk 0:02:45]} 10. bxc4 {[%clk 0:03:01]}  e5 {[%clk 0:02:37]} 11. e3 {[%clk 0:02:31]}  Re8 {[%clk 0:02:07]} 12. Qb3 {[%clk 0:01:54]}  exd4 {[%clk 0:01:51]} 13. exd4 {[%clk 0:01:52]}  Nb6 {[%clk 0:01:38]} 14. Rad1 {[%clk 0:01:48]}  Be6 {[%clk 0:01:24]} 15. Ne5 {[%clk 0:01:19]}  Nfd7 {[%clk 0:01:23]} 16. Nxd7 {[%clk 0:01:14]}  Qxd7 {[%clk 0:01:17]} 17. d5 {[%clk 0:01:11]}  cxd5 {[%clk 0:01:16]} 18. Nxd5 {[%clk 0:01:07]}  Bxd5 {[%clk 0:01:12]} 19. cxd5 {[%clk 0:00:47]}  Bxb2 {[%clk 0:01:07]} 20. Qxb2 {[%clk 0:00:48]}  Qd6 {[%clk 0:01:08]} 21. Qd4 {[%clk 0:00:44]}  Nd7 {[%clk 0:01:02]} 22. h4 {[%clk 0:00:37]}  h5 {[%clk 0:01:02]} 23. Kh2 {[%clk 0:00:28]}  Ne5 {[%clk 0:00:57]} 24. Rc1 {[%clk 0:00:21]}  Re7 {[%clk 0:00:52]} 25. Rc2 {[%clk 0:00:19]}  a6 {[%clk 0:00:43]} 26. Rfc1 {[%clk 0:00:18]}  Rae8 {[%clk 0:00:43]} 27. Rc8 {[%clk 0:00:16]}  Qf6 {[%clk 0:00:37]} 28. Qd2 {[%clk 0:00:14]}  Rxc8 {[%clk 0:00:31]} 29. Rxc8+ {[%clk 0:00:13]}  Kg7 {[%clk 0:00:32]} 30. Rc3 {[%clk 0:00:10]}  Ng4+ {[%clk 0:00:26]} 31. Kg1 {[%clk 0:00:10]}  Qe5 {[%clk 0:00:26]} 32. Rd3 {[%clk 0:00:07]}  Rd7 {[%clk 0:00:20]} 33. Bf3 {[%clk 0:00:06]}  Nf6 {[%clk 0:00:17]} 34. Kg2 {[%clk 0:00:06]}  b5 {[%clk 0:00:16]} 35. Re3 {[%clk 0:00:06]}  Qa1 {[%clk 0:00:14]} 36. Rd3 {[%clk 0:00:07]}  Ne8 {[%clk 0:00:13]} 37. d6 {[%clk 0:00:07]}  Qf6 {[%clk 0:00:12]} 38. Bc6 {[%clk 0:00:07]}  Rd8 {[%clk 0:00:08]} 39. Bxe8 {[%clk 0:00:06]}  Rxe8 {[%clk 0:00:09]} 40. d7 {[%clk 0:00:07]}  Rd8 {[%clk 0:00:09]} 41. Rd6 {[%clk 0:00:08]}  Qe7 {[%clk 0:00:09]} 42. Qd4+ {[%clk 0:00:08]}  Kg8 {[%clk 0:00:09]} 43. Qd5 {[%clk 0:00:07]}  Kf8 {[%clk 0:00:06]} 44. Qd4 {[%clk 0:00:07]}  Kg8 {[%clk 0:00:06]} 45. Qd5 {[%clk 0:00:08]}  Kg7 {[%clk 0:00:06]} 46. Qc6 {[%clk 0:00:08]}  b4 {[%clk 0:00:05]} 47. Qd5 {[%clk 0:00:08]}  a5 {[%clk 0:00:05]} 48. Qd4+ {[%clk 0:00:07]}  Kh7 {[%clk 0:00:05]} 49. Rd5 {[%clk 0:00:02]}  a4 {[%clk 0:00:05]} 50. Rd6 {[%clk 0:00:02]}  b3 {[%clk 0:00:05]} 51. axb3 {[%clk 0:00:03]}  axb3 {[%clk 0:00:06]} 52. Rd5 {[%clk 0:00:03]}  b2 {[%clk 0:00:05]} 0-1


[Site "https://www.chess.com"]

[Event "Titled Tuesday Blitz February 22 Early 2022"]
[White "Sadhwani, Raunak"]
[Black "Aldokhin, Ivan"]
[WhiteFideId "35093487"]
[BlackFideId "24115720"]
[WhiteElo "2616"]
[BlackElo "2231"]
[Result "1-0"]
[Round "01"]
[TimeControl "180+1"]
[Date "2022.02.22"]
[WhiteClock "0:00:54"]
[BlackClock "0:00:04"]

1. d4 {[%clk 0:03:00]}  Nf6 {[%clk 0:02:58]} 2. Nf3 {[%clk 0:03:00]}  g6 {[%clk 0:02:59]} 3. Nc3 {[%clk 0:02:55]}  Bg7 {[%clk 0:03:00]} 4. e4 {[%clk 0:02:53]}  d6 {[%clk 0:02:51]} 5. Be3 {[%clk 0:02:50]}  O-O {[%clk 0:02:47]} 6. Qd2 {[%clk 0:02:49]}  Ng4 {[%clk 0:02:39]} 7. Bg5 {[%clk 0:02:49]}  h6 {[%clk 0:02:27]} 8. Bh4 {[%clk 0:02:45]}  Nc6 {[%clk 0:02:11]} 9. h3 {[%clk 0:02:42]}  Nf6 {[%clk 0:02:09]} 10. d5 {[%clk 0:02:42]}  Ne5 {[%clk 0:01:53]} 11. Nxe5 {[%clk 0:02:42]}  dxe5 {[%clk 0:01:53]} 12. O-O-O {[%clk 0:02:42]}  Nh5 {[%clk 0:01:33]} 13. Bc4 {[%clk 0:02:25]}  a6 {[%clk 0:01:18]} 14. g4 {[%clk 0:02:18]}  Nf4 {[%clk 0:01:17]} 15. f3 {[%clk 0:02:14]}  b5 {[%clk 0:01:14]} 16. Bb3 {[%clk 0:02:12]}  Qd6 {[%clk 0:01:13]} 17. Bf2 {[%clk 0:02:09]}  Bd7 {[%clk 0:01:07]} 18. Ne2 {[%clk 0:02:02]}  a5 {[%clk 0:00:54]} 19. c3 {[%clk 0:02:00]}  a4 {[%clk 0:00:51]} 20. Bc2 {[%clk 0:02:00]}  b4 {[%clk 0:00:39]} 21. cxb4 {[%clk 0:01:59]}  Nxe2+ {[%clk 0:00:25]} 22. Qxe2 {[%clk 0:02:00]}  Qxb4 {[%clk 0:00:26]} 23. Qd2 {[%clk 0:02:01]}  Qb7 {[%clk 0:00:20]} 24. Bc5 {[%clk 0:02:00]}  Rfe8 {[%clk 0:00:19]} 25. h4 {[%clk 0:01:55]}  c6 {[%clk 0:00:17]} 26. h5 {[%clk 0:01:50]}  cxd5 {[%clk 0:00:14]} 27. hxg6 {[%clk 0:01:48]}  d4 {[%clk 0:00:11]} 28. gxf7+ {[%clk 0:01:48]}  Kxf7 {[%clk 0:00:11]} 29. Rxh6 {[%clk 0:01:48]}  Rac8 {[%clk 0:00:06]} 30. b4 {[%clk 0:01:13]}  Rxc5 {[%clk 0:00:03]} 31. bxc5 {[%clk 0:01:10]}  Rb8 {[%clk 0:00:03]} 32. Rb6 {[%clk 0:01:11]}  Qc7 {[%clk 0:00:03]} 33. Qb4 {[%clk 0:01:07]}  Rc8 {[%clk 0:00:04]} 34. Rb7 {[%clk 0:00:58]}  Qc6 {[%clk 0:00:03]} 35. Kb1 {[%clk 0:00:57]}  Be6 {[%clk 0:00:03]} 36. Bxa4 {[%clk 0:00:55]}  Qxc5 {[%clk 0:00:03]} 37. Qxc5 {[%clk 0:00:56]}  Rxc5 {[%clk 0:00:04]} 38. Bb3 {[%clk 0:00:55]}  Rc3 {[%clk 0:00:04]} 39. Bxe6+ {[%clk 0:00:55]}  Kxe6 {[%clk 0:00:04]} 40. Rb3 {[%clk 0:00:56]}  Rc4 {[%clk 0:00:04]} 41. Rc1 {[%clk 0:00:56]}  Ra4 {[%clk 0:00:05]} 42. Rc6+ {[%clk 0:00:56]}  Kf7 {[%clk 0:00:04]} 43. g5 {[%clk 0:00:54]} 1-0


[Site "https://www.chess.com"]

[Event "Titled Tuesday Blitz February 22 Early 2022"]
[White "Sahil, Tickoo"]
[Black "Sargsyan, Anna M."]
[WhiteFideId "5019710"]
[BlackFideId "13308130"]
[WhiteElo "2099"]
[BlackElo "2271"]
[Result "0-1"]
[Round "01"]
[TimeControl "180+1"]
[Date "2022.02.22"]
[WhiteClock "0:00:08"]
[BlackClock "0:01:16"]

1. d4 {[%clk 0:02:43]}  d5 {[%clk 0:02:59]} 2. Bf4 {[%clk 0:02:42]}  Nf6 {[%clk 0:02:59]} 3. e3 {[%clk 0:02:42]}  c5 {[%clk 0:02:59]} 4. c3 {[%clk 0:02:42]}  Nc6 {[%clk 0:03:00]} 5. Nd2 {[%clk 0:02:42]}  Bg4 {[%clk 0:02:59]} 6. Ngf3 {[%clk 0:02:41]}  e6 {[%clk 0:02:59]} 7. Bd3 {[%clk 0:02:38]}  Bd6 {[%clk 0:02:58]} 8. Bg3 {[%clk 0:02:37]}  O-O {[%clk 0:02:57]} 9. O-O {[%clk 0:02:35]}  Rc8 {[%clk 0:02:56]} 10. a3 {[%clk 0:02:34]}  Re8 {[%clk 0:02:56]} 11. Bxd6 {[%clk 0:02:28]}  Qxd6 {[%clk 0:02:56]} 12. h3 {[%clk 0:02:27]}  Bh5 {[%clk 0:02:55]} 13. Rc1 {[%clk 0:02:24]}  e5 {[%clk 0:02:54]} 14. dxe5 {[%clk 0:02:23]}  Nxe5 {[%clk 0:02:53]} 15. Be2 {[%clk 0:02:23]}  Nc6 {[%clk 0:02:51]} 16. Re1 {[%clk 0:02:20]}  Rcd8 {[%clk 0:02:51]} 17. Qc2 {[%clk 0:02:07]}  h6 {[%clk 0:02:48]} 18. Bf1 {[%clk 0:02:04]}  Ne4 {[%clk 0:02:47]} 19. Be2 {[%clk 0:02:00]}  Bg6 {[%clk 0:02:45]} 20. Qd1 {[%clk 0:01:54]}  Kh8 {[%clk 0:02:39]} 21. Bf1 {[%clk 0:01:50]}  f5 {[%clk 0:02:36]} 22. Qe2 {[%clk 0:01:43]}  Bh5 {[%clk 0:02:35]} 23. Qd1 {[%clk 0:01:36]}  Nxd2 {[%clk 0:02:34]} 24. Qxd2 {[%clk 0:01:37]}  Bxf3 {[%clk 0:02:35]} 25. gxf3 {[%clk 0:01:37]}  Ne5 {[%clk 0:02:35]} 26. Bg2 {[%clk 0:01:33]}  Qg6 {[%clk 0:02:35]} 27. Qe2 {[%clk 0:01:22]}  f4 {[%clk 0:02:35]} 28. Rcd1 {[%clk 0:01:13]}  Nc4 {[%clk 0:02:11]} 29. e4 {[%clk 0:01:08]}  Nb6 {[%clk 0:02:03]} 30. Kh2 {[%clk 0:00:59]}  d4 {[%clk 0:02:02]} 31. cxd4 {[%clk 0:00:57]}  cxd4 {[%clk 0:02:03]} 32. Qd3 {[%clk 0:00:50]}  Qf6 {[%clk 0:01:54]} 33. Rc1 {[%clk 0:00:50]}  Nd7 {[%clk 0:01:51]} 34. Rc7 {[%clk 0:00:42]}  Ne5 {[%clk 0:01:52]} 35. Qb5 {[%clk 0:00:38]}  d3 {[%clk 0:01:45]} 36. Rd1 {[%clk 0:00:34]}  Qh4 {[%clk 0:01:43]} 37. Rd2 {[%clk 0:00:32]}  Qh5 {[%clk 0:01:33]} 38. Qxb7 {[%clk 0:00:17]}  Rg8 {[%clk 0:01:27]} 39. Re7 {[%clk 0:00:12]}  Nxf3+ {[%clk 0:01:27]} 40. Bxf3 {[%clk 0:00:12]}  Qxf3 {[%clk 0:01:27]} 41. e5 {[%clk 0:00:11]}  Qh5 {[%clk 0:01:22]} 42. e6 {[%clk 0:00:09]}  f3 {[%clk 0:01:20]} 43. Qe4 {[%clk 0:00:08]}  Qg5 {[%clk 0:01:16]} 0-1


[Site "https://www.chess.com"]

[Event "Titled Tuesday Blitz February 22 Early 2022"]
[White "Samadov, Read"]
[Black "Farmani Anosheh, Armin"]
[WhiteFideId "13417444"]
[BlackFideId "24613240"]
[WhiteElo "2084"]
[BlackElo "2289"]
[Result "1-0"]
[Round "01"]
[TimeControl "180+1"]
[Date "2022.02.22"]
[WhiteClock "0:00:55"]
[BlackClock "0:00:18"]

1. d4 {[%clk 0:03:00]}  Nf6 {[%clk 0:03:00]} 2. c4 {[%clk 0:03:01]}  e6 {[%clk 0:03:00]} 3. Nf3 {[%clk 0:03:01]}  Bb4+ {[%clk 0:03:00]} 4. Bd2 {[%clk 0:03:00]}  c5 {[%clk 0:02:59]} 5. g3 {[%clk 0:02:47]}  b6 {[%clk 0:02:50]} 6. Bg2 {[%clk 0:02:47]}  Bb7 {[%clk 0:02:50]} 7. O-O {[%clk 0:02:47]}  Bxd2 {[%clk 0:02:40]} 8. Qxd2 {[%clk 0:02:46]}  cxd4 {[%clk 0:02:40]} 9. Nxd4 {[%clk 0:02:39]}  Bxg2 {[%clk 0:02:39]} 10. Kxg2 {[%clk 0:02:39]}  O-O {[%clk 0:02:40]} 11. Nc3 {[%clk 0:02:38]}  d5 {[%clk 0:02:39]} 12. cxd5 {[%clk 0:02:34]}  Nxd5 {[%clk 0:02:37]} 13. Rfd1 {[%clk 0:02:34]}  Nxc3 {[%clk 0:02:24]} 14. Qxc3 {[%clk 0:02:33]}  Qc8 {[%clk 0:02:07]} 15. Qf3 {[%clk 0:02:26]}  Nd7 {[%clk 0:01:39]} 16. Rac1 {[%clk 0:02:21]}  Qa6 {[%clk 0:01:38]} 17. Nc6 {[%clk 0:01:46]}  Nf6 {[%clk 0:01:34]} 18. a3 {[%clk 0:01:43]}  Kh8 {[%clk 0:01:21]} 19. h4 {[%clk 0:01:41]}  h5 {[%clk 0:01:00]} 20. Rd4 {[%clk 0:01:15]}  Qb7 {[%clk 0:00:56]} 21. Ne5 {[%clk 0:01:10]}  Qxf3+ {[%clk 0:00:54]} 22. Kxf3 {[%clk 0:01:10]}  Rfc8 {[%clk 0:00:52]} 23. Nxf7+ {[%clk 0:01:04]}  Kg8 {[%clk 0:00:51]} 24. Rxc8+ {[%clk 0:01:05]}  Rxc8 {[%clk 0:00:50]} 25. Rd8+ {[%clk 0:01:04]}  Rxd8 {[%clk 0:00:46]} 26. Nxd8 {[%clk 0:01:05]}  e5 {[%clk 0:00:46]} 27. Nc6 {[%clk 0:01:01]}  e4+ {[%clk 0:00:47]} 28. Kf4 {[%clk 0:01:01]}  a5 {[%clk 0:00:44]} 29. Ne7+ {[%clk 0:01:00]}  Kf7 {[%clk 0:00:43]} 30. Nc8 {[%clk 0:01:00]}  e3 {[%clk 0:00:24]} 31. Kxe3 {[%clk 0:00:58]}  Nd5+ {[%clk 0:00:25]} 32. Kd4 {[%clk 0:00:57]}  Ke6 {[%clk 0:00:26]} 33. e4 {[%clk 0:00:57]}  Nf6 {[%clk 0:00:19]} 34. Nxb6 {[%clk 0:00:57]}  Ng4 {[%clk 0:00:19]} 35. f3 {[%clk 0:00:56]}  Nh2 {[%clk 0:00:19]} 36. Ke3 {[%clk 0:00:56]}  Nf1+ {[%clk 0:00:20]} 37. Kf4 {[%clk 0:00:55]}  g6 {[%clk 0:00:17]} 38. b4 {[%clk 0:00:55]}  axb4 {[%clk 0:00:17]} 39. axb4 {[%clk 0:00:55]}  Kd6 {[%clk 0:00:17]} 40. Nd5 {[%clk 0:00:55]}  Ke6 {[%clk 0:00:17]} 41. b5 {[%clk 0:00:55]}  Nd2 {[%clk 0:00:18]} 42. b6 {[%clk 0:00:55]}  Kd6 {[%clk 0:00:18]} 43. b7 {[%clk 0:00:55]} 1-0


[Site "https://www.chess.com"]

[Event "Titled Tuesday Blitz February 22 Early 2022"]
[White "Samaganova, Aleksandra"]
[Black "Tologon tegin, Semetei"]
[WhiteFideId "13800221"]
[BlackFideId "13800574"]
[WhiteElo "1859"]
[BlackElo "2258"]
[Result "0-1"]
[Round "01"]
[TimeControl "180+1"]
[Date "2022.02.22"]
[WhiteClock "0:00:01"]
[BlackClock "0:00:45"]

1. c4 {[%clk 0:02:59]}  e6 {[%clk 0:02:58]} 2. Nc3 {[%clk 0:02:59]}  d5 {[%clk 0:02:58]} 3. e3 {[%clk 0:02:59]}  Nf6 {[%clk 0:02:57]} 4. Nf3 {[%clk 0:02:59]}  Be7 {[%clk 0:02:57]} 5. d4 {[%clk 0:02:59]}  O-O {[%clk 0:02:57]} 6. cxd5 {[%clk 0:02:58]}  exd5 {[%clk 0:02:56]} 7. Bd3 {[%clk 0:02:58]}  Bg4 {[%clk 0:02:47]} 8. h3 {[%clk 0:02:56]}  Bh5 {[%clk 0:02:47]} 9. O-O {[%clk 0:02:55]}  c6 {[%clk 0:02:45]} 10. Be2 {[%clk 0:02:36]}  Nbd7 {[%clk 0:02:41]} 11. a3 {[%clk 0:02:29]}  Re8 {[%clk 0:02:37]} 12. b4 {[%clk 0:02:27]}  a6 {[%clk 0:02:35]} 13. Rb1 {[%clk 0:02:25]}  Bd6 {[%clk 0:02:31]} 14. a4 {[%clk 0:02:24]}  Rc8 {[%clk 0:02:10]} 15. Qb3 {[%clk 0:02:15]}  Ne4 {[%clk 0:02:00]} 16. Rd1 {[%clk 0:01:53]}  Bb8 {[%clk 0:01:37]} 17. g4 {[%clk 0:00:43]}  Bg6 {[%clk 0:01:33]} 18. Nxe4 {[%clk 0:00:19]}  Bxe4 {[%clk 0:01:30]} 19. Rb2 {[%clk 0:00:19]}  Qf6 {[%clk 0:01:16]} 20. Kg2 {[%clk 0:00:04]}  h5 {[%clk 0:01:01]} 21. b5 {[%clk 0:00:01]}  axb5 {[%clk 0:01:00]} 22. axb5 {[%clk 0:00:01]}  hxg4 {[%clk 0:01:00]} 23. hxg4 {[%clk 0:00:02]}  Qh4 {[%clk 0:01:00]} 24. Rh1 {[%clk 0:00:01]}  Qxg4+ {[%clk 0:01:00]} 25. Kf1 {[%clk 0:00:02]}  Bxf3 {[%clk 0:00:53]} 26. Bxf3 {[%clk 0:00:03]}  Qxf3 {[%clk 0:00:53]} 27. Rg1 {[%clk 0:00:03]}  Nf6 {[%clk 0:00:48]} 28. Qc2 {[%clk 0:00:02]}  cxb5 {[%clk 0:00:45]} 29. Qd2 {[%clk 0:00:01]} 0-1


[Site "https://www.chess.com"]

[Event "Titled Tuesday Blitz February 22 Early 2022"]
[White "Samant Aditya S"]
[Black "Dzhaparov, Medet"]
[WhiteFideId "35080580"]
[BlackFideId "13803689"]
[WhiteElo "1916"]
[BlackElo "1702"]
[Result "1-0"]
[Round "01"]
[TimeControl "180+1"]
[Date "2022.02.22"]
[WhiteClock "0:02:39"]
[BlackClock "0:02:03"]

1. e4 {[%clk 0:03:00]}  e5 {[%clk 0:02:58]} 2. Nf3 {[%clk 0:03:01]}  Nc6 {[%clk 0:02:56]} 3. d4 {[%clk 0:03:01]}  exd4 {[%clk 0:02:56]} 4. Bc4 {[%clk 0:03:02]}  Nf6 {[%clk 0:02:56]} 5. O-O {[%clk 0:03:02]}  Bc5 {[%clk 0:02:54]} 6. e5 {[%clk 0:03:01]}  d5 {[%clk 0:02:40]} 7. exf6 {[%clk 0:03:01]}  dxc4 {[%clk 0:02:37]} 8. fxg7 {[%clk 0:03:02]}  Rg8 {[%clk 0:02:37]} 9. Bg5 {[%clk 0:03:02]}  Be7 {[%clk 0:02:34]} 10. Bxe7 {[%clk 0:03:00]}  Qxe7 {[%clk 0:02:32]} 11. Nxd4 {[%clk 0:02:52]}  Nxd4 {[%clk 0:02:31]} 12. Qxd4 {[%clk 0:02:52]}  Be6 {[%clk 0:02:32]} 13. Nc3 {[%clk 0:02:48]}  a6 {[%clk 0:02:29]} 14. Nd5 {[%clk 0:02:40]}  Qd6 {[%clk 0:02:03]} 15. Nf6+ {[%clk 0:02:39]} 1-0


[Site "https://www.chess.com"]

[Event "Titled Tuesday Blitz February 22 Early 2022"]
[White "Seifert, Henryk"]
[Black "Ginzburg, Yakov"]
[WhiteFideId "1100963"]
[BlackFideId "4157176"]
[WhiteElo "2120"]
[BlackElo "2265"]
[Result "0-1"]
[Round "01"]
[TimeControl "180+1"]
[Date "2022.02.22"]
[WhiteClock "0:00:09"]
[BlackClock "0:01:08"]

1. e4 {[%clk 0:02:59]}  c5 {[%clk 0:02:59]} 2. Nf3 {[%clk 0:02:58]}  e6 {[%clk 0:02:59]} 3. c3 {[%clk 0:02:58]}  d5 {[%clk 0:02:58]} 4. exd5 {[%clk 0:02:57]}  exd5 {[%clk 0:02:59]} 5. Bb5+ {[%clk 0:02:56]}  Bd7 {[%clk 0:02:57]} 6. Qe2+ {[%clk 0:02:55]}  Qe7 {[%clk 0:02:54]} 7. O-O {[%clk 0:02:49]}  Qxe2 {[%clk 0:02:51]} 8. Bxe2 {[%clk 0:02:50]}  Nf6 {[%clk 0:02:49]} 9. d4 {[%clk 0:02:49]}  c4 {[%clk 0:02:44]} 10. b3 {[%clk 0:02:46]}  cxb3 {[%clk 0:02:44]} 11. axb3 {[%clk 0:02:45]}  Bd6 {[%clk 0:02:40]} 12. Ba3 {[%clk 0:02:44]}  Bxa3 {[%clk 0:02:38]} 13. Nxa3 {[%clk 0:02:44]}  O-O {[%clk 0:02:39]} 14. Nb5 {[%clk 0:02:38]}  Nc6 {[%clk 0:02:29]} 15. Nd6 {[%clk 0:02:18]}  Rab8 {[%clk 0:02:26]} 16. Bd3 {[%clk 0:02:11]}  g6 {[%clk 0:02:25]} 17. Ne5 {[%clk 0:02:04]}  a6 {[%clk 0:01:44]} 18. b4 {[%clk 0:01:44]}  Nxe5 {[%clk 0:01:38]} 19. dxe5 {[%clk 0:01:43]}  Ne8 {[%clk 0:01:36]} 20. Rfe1 {[%clk 0:01:22]}  Nxd6 {[%clk 0:01:18]} 21. exd6 {[%clk 0:01:23]}  Rbc8 {[%clk 0:01:18]} 22. Re7 {[%clk 0:01:16]}  Rfd8 {[%clk 0:01:18]} 23. Rc1 {[%clk 0:01:08]}  b5 {[%clk 0:01:17]} 24. Kf1 {[%clk 0:00:58]}  Be6 {[%clk 0:01:15]} 25. Ra7 {[%clk 0:00:29]}  Rxd6 {[%clk 0:01:14]} 26. Ke2 {[%clk 0:00:28]}  d4 {[%clk 0:01:14]} 27. Ra1 {[%clk 0:00:11]}  dxc3 {[%clk 0:01:10]} 28. R1xa6 {[%clk 0:00:09]}  Rxa6 {[%clk 0:01:08]} 29. Rxa6 {[%clk 0:00:09]}  c2 {[%clk 0:01:08]} 0-1


[Site "https://www.chess.com"]